[Event "RUS-chT Premier 2021"]
[White "Ponkratov,Pavel"]
[Black "Potkin,Vladimir"]
[WhiteTeam "Медный всадник"]
[BlackTeam "КПРФ"]
[Site "Sochi"]
[Round "4.24"]
[Annotator "RC"]
[Result "1/2-1/2"]
[Date "2021.05.04"]
[WhiteElo "2619"]
[BlackElo "2578"]
[PlyCount "53"]
[TimeControl "60"]

1. d4 {[%emt 0:0:0]} Nf6 {[%emt 0:0:0]} 2. c4 {[%emt 0:0:0]} e6 {[%emt 0:0:0]} 3. Nf3 {[%emt 0:0:0]} d5 {[%emt 0:0:22]} 4. g3 {[%emt 0:0:0]} Bb4+ {[%emt 0:1:24]} 5. Nc3 {[%emt 0:0:51]} 0-0 {[%emt 0:1:52]} 6. Bg2 {[%emt 0:0:0]} dxc4 {[%emt 0:1:4]} 7. 0-0 {[%emt 0:0:5]} Nc6 {[%emt 0:0:53]} 8. Qa4 {[%emt 0:0:5]} Nd5 {[%emt 0:1:13]} 9. Qc2 {[%emt 0:0:9]} Be7 {[%emt 0:0:0]} 10. Rd1 {[%emt 0:0:6]} Rb8 {[%emt 0:0:38]} 11. h4 {[%emt 0:9:9]} b5 {[%emt 0:10:32]} 12. Ng5 {[%emt 0:5:33]} g6 {[%emt 0:2:16]} 13. Nf3 {[%emt 0:11:52]
} Ba6 {[%emt 0:26:3]} 14. Ne4 {[%emt 0:19:40]} Rb6 {[%emt 0:0:0]} 15. Bg5 {[%emt 0:5:56]} Re8 {[%emt 0:4:26]} 16. Nc5 {[%emt 0:4:34]} Qd6 {[%emt 0:1:14]} 17. e3 {[%emt 0:12:25]} Bf8 {[%emt 0:6:3]} 18. h5 {[%emt 0:0:0]} gxh5 {[%emt 0:18:0]} 19. Ne4 {[%emt 0:10:40]} Qb4 {[%emt 0:2:46]} 20. Bf6 {[%emt 0:3:25]} Bg7 {[%emt 0:4:53]} 21. Bxg7 {[%emt 0:0:29]} Kxg7 {[%emt 0:0:2]
} 22. Nc5 {[%emt 0:0:38]} Nf6 {[%emt 0:1:47]} 23. a3 {[%emt 0:0:0]} Qa5 {[%emt 0:0:8]} 24. Nd2 {[%emt 0:0:4]} b4 {[%emt 0:1:43]} 25. axb4 {[%emt 0:5:46]} Qb5 {[%emt 0:0:1]} 26. Qa4 {[%emt 0:1:47]} Nxb4 {[%emt 0:2:36]
} 27. Nxa6 {[%emt 0:2:2]} 1/2-1/2